Cogmind - Beta 16.1 @@@ ROGUE MODE // 2026.02.24 @ 13:48:23 Player: Legion Result: Destroyed by S-27 Virus with Autogun Performance ------------- Evolutions (4) 2000 Regions Visited (8) 1600 Robots Destroyed (37) 185 Value Destroyed (1129) 1129 Prototype IDs (1) 20 Alien Tech Used (0) 0 Bonus (-10) -10 TOTAL SCORE: 4924 Bonus ------- Friendly Fire -10 Cogmind --------- Core Integrity 0/850 Matter 212/300 Energy 72/100 System Corruption 1% Temperature Cool (0) Movement Core (50) Location -6/Lower Caves Parts ------- > --- POWER (2) -------- (None) > --- PROPULSION (4) --- (None) > --- UTILITY (6) ------ Advanced Visual Processing Unit Advanced Targeting Computer Hacking Suite Hacking Suite > --- WEAPON (3) ------- (None) > --- INVENTORY (5) ---- Improved Deuterium Engine Kinecellerator Drone Bay (2/2) Drone Bay (2/2) Drone Bay (0/2) Peak State ------------ > --- POWER ------------ Nuclear Core Micro Nuclear Core > --- PROPULSION ------- Gravmag System Gravmag System Gravmag System Combat Airjet > --- UTILITY ---------- Advanced Visual Processing Unit IFF Parser Advanced Targeting Computer Kinecellerator Kinecellerator Hacking Suite > --- WEAPON ----------- High-powered Shotgun Gauss Rifle > --- INVENTORY -------- Light Nuclear Core Improved Cesium-ion Thruster Improved Cesium-ion Thruster Kinecellerator [Rating: 54] Favorites ----------- Power Deuterium Engine Engine Deuterium Engine Power Core Micro Nuclear Core Propulsion Aluminum Leg Leg Aluminum Leg Wheel Wheel Hover Unit Combat Airjet Flight Unit Improved Cesium-ion Thruster Utility Advanced Targeting Computer Device Improved Terrain Scanner Storage Small Storage Unit Processor Advanced Targeting Computer Hackware Hacking Suite Protection Improved Power Shielding Weapon Heavy Assault Rifle Energy Gun EM Pulse Gun Ballistic Gun Heavy Assault Rifle Launcher EMP Blaster Special Weapon Mining Laser Slashing Weapon Mining Claw Special Melee Weapon Datajack Build | -11 -10 -9 -9 -8 -7 -6 -6 -6 ------- Run | Yrd Mat Mat Min Mat Fac Fac Low Low Slots Evolved 8 | . . 2 . 2 2 2 . . Power 1 | . . . . 1 . . . . Propulsion 2 | . . . . 1 1 . . . Utility 4 | . . 2 . . 1 1 . . Weapon 1 | . . . . . . 1 . . Parts Attached 88 | 6 3 13 15 14 19 8 5 5 Power 12 | 1 . 3 2 2 2 1 . 1 Engine 8 | 1 . 3 2 1 . . . 1 Core 4 | . . . . 1 2 1 . . Reactor . | . . . . . . . . . Propulsion 26 | 2 . 4 4 4 6 2 2 2 Treads . | . . . . . . . . . Leg 8 | 2 . 1 . 3 2 . . . Wheel 2 | . . . 2 . . . . . Hover 11 | . . 3 2 1 3 1 1 . Flight 5 | . . . . . 1 1 1 2 Utility 29 | 1 2 3 3 5 7 5 2 1 Device 18 | . 2 . 3 2 5 4 1 1 Storage 2 | 1 . . . 1 . . . . Processor 5 | . . 2 . 1 1 1 . . Hackware 2 | . . . . . 1 . 1 . Protection 2 | . . 1 . 1 . . . . Artifact . | . . . . . . . . . Weapon 21 | 2 1 3 6 3 4 . 1 1 Energy Gun 3 | 1 . 1 . . 1 . . . Energy Cannon . | . . . . . . . . . Ballistic Gun 9 | 1 . 1 1 2 3 . 1 . Ballistic Cannon . | . . . . . . . . . Launcher 3 | . . . 3 . . . . . Special Weapon 2 | . . . 2 . . . . . Impact Weapon . | . . . . . . . . . Slashing Weapon 2 | . . 1 . . . . . 1 Piercing Weapon . | . . . . . . . . . Special Melee Weapon 2 | . 1 . . 1 . . . . Unidentified Prototypes . | . . . . . . . . . Parts Lost 46 | . . 1 14 3 6 9 . 13 Power 5 | . . . 2 . 1 . . 2 Propulsion 16 | . . . 2 1 3 3 . 7 Utility 12 | . . . 5 . 1 4 . 2 Weapon 13 | . . 1 5 2 1 2 . 2 Highest Loss Streak 13 | . . 1 11 1 5 9 . 13 To Critical Strikes 2 | . . . . . . 1 . 1 Average Backups 5 | 1 3 7 5 4 4 3 3 4 Power . | . 1 1 . . . . . . Propulsion 1 | . . . 2 1 2 2 . . Utility 1 | . . 3 . . . . 2 4 Weapon 1 | . 1 1 2 1 1 . . . Tool/Special . | . . . . . . . . . Unused Backups 7 | . 1 2 . . 1 1 . 2 Power 1 | . 1 . . . . . . . Propulsion 1 | . . . . . . 1 . . Utility 4 | . . 2 . . . . . 2 Weapon 1 | . . . . . 1 . . . Tool/Special . | . . . . . . . . . Average Slot Usage (%) 87 | . 92 99 68 77 96 88 79 46 Engine 7 | . 14 11 9 5 6 . . . Core 3 | . . . . 4 6 13 13 2 Leg 12 | . 27 20 . 6 14 . . . Hover 9 | . . 1 13 15 13 23 13 4 Flight 1 | . . . . . . 1 11 6 Device 15 | . 9 22 12 16 17 17 10 1 Storage 5 | . 12 11 3 . . . . . Processor 9 | . . 10 3 5 15 13 20 15 Hackware 1 | . . . . . 1 6 6 13 Protection 1 | . . . . 5 2 . . . Energy Gun 5 | . 14 10 3 . 1 . . . Ballistic Gun 8 | . 5 4 9 14 13 10 . . Slashing Weapon 1 | . . 1 3 . . . . . Special Melee Weapon 2 | . 8 5 . 1 . . . . Peak Build Rating 54 | 6 7 14 14 31 48 54 50 49 Average Rating 22 | 4 6 13 10 22 35 49 48 24 On Entrance 23 | . 6 7 13 12 27 48 45 49 Avg Prop Armor Cover (%) 3 | . . . . 7 3 1 2 5 Naked Turns . | . . . . . . . . . Heaviest Build 32 | 14 15 19 13 26 26 32 23 16 Greatest Support 43 | 20 20 20 20 35 37 43 33 33 Greatest Overweight (x) 2 | 2 . 1 2 1 1 . . . Average Overweight (x) . | . . . . . . . . . Largest Inventory Capacity 8 | 8 8 8 8 5 5 5 5 5 Average Capacity 6 | 7 7 8 5 5 5 5 5 5 Most Carried 8 | 2 5 8 8 5 5 5 5 5 Average Carried 5 | 1 3 7 5 4 4 3 3 4 Final Capacity 8 | 8 5 8 5 5 5 5 5 5 Final Carried 8 | 2 5 8 5 5 5 4 5 5 Class Distribution -------------------- 73% | Mutant 24% | Scavenger-Mutant Dominant Class ---------------- Mutant | -10/Materials Mutant | -9/Materials Scavenger-Mutant | -9/Mines Mutant | -8/Materials Scavenger-Mutant | -7/Factory Mutant | -6/Factory Mutant | -6/Lower Caves Hacker-Mutant | -6/Lower Caves Resources | -11 -10 -9 -9 -8 -7 -6 -6 -6 ----------- Run | Yrd Mat Mat Min Mat Fac Fac Low Low Matter Collected 1595 | 206 122 212 168 438 302 30 117 . Remotely . | . . . . . . . . . Salvage Created 1286 | . 249 320 108 330 249 30 . . Parts 60 | . 7 23 2 15 13 . . . Haulers Intercepted 1 | . 1 . . . . . . . Recyclers Shooed . | . . . . . . . . . Parts Field Recycled . | . . . . . . . . . Retrieved Matter . | . . . . . . . . . Parts Self-Destructed 4 | . . . . . . . . 4 Prevented . | . . . . . . . . . Parts Restored . | . . . . . . . . . Kills | -11 -10 -9 -9 -8 -7 -6 -6 -6 ------- Run | Yrd Mat Mat Min Mat Fac Fac Low Low Combat Hostiles Destroyed 46 | . 4 10 17 6 7 2 . . Guns 28 | . 1 10 2 6 7 2 . . AOE 18 | . 3 . 15 . . . . . Classes Destroyed 11 | . 3 3 3 1 1 . . . Worker 2 | . 1 1 . . . . . . Builder 1 | . . 1 . . . . . . Tunneler 1 | . . . 1 . . . . . Hauler 1 | . 1 . . . . . . . Watcher 1 | . . . . 1 . . . . Swarmer 11 | . . 6 . . 3 2 . . Grunt 15 | . 4 3 . 5 3 . . . Sentry 2 | . . 1 . 1 . . . . Demolisher 2 | . . . 2 . . . . . Programmer 1 | . . . . . 1 . . . Assembled 15 | . . . 15 . . . . . Best Kill Streak 15 | . 4 4 15 3 3 2 . . Combat Bots Only 15 | . 3 4 15 3 3 2 . . Max Kills in Single Turn 5 | . 3 2 5 1 1 1 . . Gunslinging 1 | . . 1 . . . . . . Exploded 5 | . 2 . 5 . . . . . Melee . | . . . . . . . . . Uniques/NPCs Destroyed . | . . . . . . . . . Combat | -11 -10 -9 -9 -8 -7 -6 -6 -6 -------- Run | Yrd Mat Mat Min Mat Fac Fac Low Low Hostile Shots Fired 559 | . 18 87 40 87 76 97 18 136 Missed 218 | . 4 34 13 37 18 40 9 63 Hits 341 | . 14 53 27 50 58 57 9 73 Melee 1 | . . . . . . . . 1 Projectile 340 | . 14 53 27 50 58 57 9 72 AOE 7 | . . . 7 . . . . . Critical Strikes 11 | . 1 2 . 4 . 1 . 3 Damage Taken 5220 | . 212 547 1022 555 745 901 67 1171 Core 1344 | . 13 66 194 102 116 93 5 755 Absorbed by Shields 284 | . . . 6 140 138 . . . Redirected to Shielding 32 | . . . . 32 . . . . Regen/Repaired (Parts) 20 | . 20 . . . . . . . Core Remaining (%) 78 | 100 94 . 35 81 83 . . . Volleys Fired 139 | . 22 25 24 30 29 8 . 1 Largest 2 | . 2 2 2 2 2 2 . 1 Hottest 100 | . 60 60 100 100 88 53 . 25 Shots Fired 231 | . 32 46 27 58 58 9 . 1 Gun 215 | . 32 46 13 56 58 9 . 1 Cannon . | . . . . . . . . . Launcher 9 | . . . 9 . . . . . Special 7 | . . . 5 2 . . . . Kinetic 159 | . 10 21 10 56 52 9 . 1 Thermal 38 | . . 22 8 2 6 . . . Explosive 5 | . . . 5 . . . . . Electromagnetic 29 | . 22 3 4 . . . . . Robot Hit Streak 13 | . 6 8 6 13 13 4 . . Robot Miss Streak 4 | . 2 2 2 1 4 4 . 1 Penetration Max . | . . . . . . . . . Secondary Targets 2 | . . 1 . . 1 . . . Max Gunslinging Chain 1 | . . 1 . . 1 . . . Shots Hit Robots 188 | . 38 41 14 46 43 6 . . Core Hits 101 | . 9 17 35 17 19 4 . . Critical Kills 1 | . 1 . . . . . . . Critical Parts Destroyed 1 | . . 1 . . . . . . Critical Strikes 2 | . 1 1 . . . . . . Destroy 2 | . 1 1 . . . . . . Melee Attacks 54 | . 14 21 14 5 . . . . Impact . | . . . . . . . . . Slashing 32 | . . 18 14 . . . . . Piercing . | . . . . . . . . . Sneak Attacks 21 | . 14 5 . 2 . . . . Combat Hostiles . | . . . . . . . . . Follow-up Attacks . | . . . . . . . . . Damage Inflicted 3680 | . 521 462 1156 594 775 172 . . Guns 2314 | . 305 358 113 591 775 172 . . Cannons . | . . . . . . . . . Explosions 1257 | . 216 . 1041 . . . . . Melee 104 | . . 104 . . . . . . Ramming 5 | . . . 2 3 . . . . Kinetic 1814 | . 120 172 81 591 678 172 . . Thermal 509 | . 216 164 32 . 97 . . . Explosive 962 | . . . 962 . . . . . Electromagnetic 286 | . 185 22 79 . . . . . Impact . | . . . . . . . . . Slashing 104 | . . 104 . . . . . . Piercing . | . . . . . . . . . Highest Corruption 21 | . . . 21 . . 1 1 1 Average Corruption 8 | . . . 20 . . 1 1 1 Corruption Purged . | . . . . . . . . . Corruption Blocked . | . . . . . . . . . Effects 20 | . . . 16 . . 1 3 . Message Errors 6 | . . . 4 . . 1 1 . Matter Fused 3 | . . . 3 . . . . . Heat Flow Errors 2 | . . . 2 . . . . . Energy Discharges 1 | . . . . . . . 1 . Parts Fused 1 | . . . . . . . 1 . Data Loss (minor) 3 | . . . 3 . . . . . Data Loss (major) 1 | . . . 1 . . . . . Misfires 1 | . . . 1 . . . . . Alerts 1 | . . . 1 . . . . . Misdirections 1 | . . . 1 . . . . . Overload Shots . | . . . . . . . . . Overflow Damage 55 | . 3 20 32 . . . . . Projectiles . | . . . . . . . . . Explosions 35 | . 3 . 32 . . . . . Melee 20 | . . 20 . . . . . . Knockbacks . | . . . . . . . . . Impact . | . . . . . . . . . Kinetic . | . . . . . . . . . Secondary . | . . . . . . . . . Self-Inflicted Damage 41 | . 40 . 1 . . . . . Shots 1 | . 1 . . . . . . . Rammed 2 | . . . 1 1 . . . . Targets Rammed 3 | . . . 1 2 . . . . Kicked 1 | . . . . 1 . . . . Crushed . | . . . . . . . . . Highest Temperature 193 | . 81 44 193 46 69 . . . Average Temperature 31 | . 37 20 63 19 25 . . . Received Heat Transfer 932 | . 117 147 30 260 276 27 18 57 Siege Activations . | . . . . . . . . . Martial Activations . | . . . . . . . . . Shielding Activations . | . . . . . . . . . Robots Disrupted 1 | . . . 1 . . . . . Combat Hostiles 1 | . . . 1 . . . . . Robots Corrupted . | . . . . . . . . . Combat Hostiles . | . . . . . . . . . Parts Fried 2 | . 2 . . . . . . . Impact Corruptions . | . . . . . . . . . Robots Melted . | . . . . . . . . . Combat Hostiles . | . . . . . . . . . Parts Melted . | . . . . . . . . . Heat Transferred 922 | . 250 375 75 . 222 . . . Parts Sabotaged . | . . . . . . . . . Parts Stolen . | . . . . . . . . . Parts Stripped . | . . . . . . . . . Power Chain Reactions 2 | . 2 . . . . . . . Alert | -11 -10 -9 -9 -8 -7 -6 -6 -6 ------- Run | Yrd Mat Mat Min Mat Fac Fac Low Low Maximum Alert Level . | . . . . . . . . . Low Security (%) 100 | 100 100 100 100 100 100 100 . . Level 1 . | . . . . . . . . . Level 2 . | . . . . . . . . . Level 3 . | . . . . . . . . . Level 4 . | . . . . . . . . . Level 5 . | . . . . . . . . . High Security . | . . . . . . . . . Max Security . | . . . . . . . . . Peak Influence 134 | . 118 134 52 65 90 80 . . Initial 52 | . . . 52 . 9 39 . . Average 23 | . 32 37 10 24 9 21 . . Influence Increases 1242 | . 155 359 85 209 186 83 . 165 Destroy 0b10 Robot/C 620 | . 80 200 40 120 140 40 . . Destroy 0b10 Robot/NC 30 | . 10 10 5 5 . . . . Destroy Leader 114 | . 12 30 10 22 30 10 . . Successful Hack 21 | . 12 6 . . . 3 . . Disable Machine 15 | . . . . . 15 . . . Destroy Structure 52 | . 11 8 30 2 1 . . . Lose Combat Pursuer 390 | . 30 105 . 60 . 30 . 165 Influence Decreases 1127 | . 155 225 219 189 124 145 20 50 Entered New Map 144 | . . . 82 . 11 43 8 . Time Decay 816 | . 155 215 110 159 83 62 12 20 Lost Part 167 | . . 10 27 30 30 40 . 30 Squads Dispatched 10 | . . 3 . 2 2 2 . 1 Investigation 4 | . . 1 . 1 . 2 . . Extermination 1 | . . . . . 1 . . . Reinforcement 4 | . . 2 . 1 1 . . . Assault 1 | . . . . . . . . 1 Garrison . | . . . . . . . . . Intercept . | . . . . . . . . . Searches Triggered . | . . . . . . . . . Construction Impeded . | . . . . . . . . . Haulers Reinforced . | . . . . . . . . . Active Scanning Responses . | . . . . . . . . . Cargo Convoy Interrupts . | . . . . . . . . . Stealth | -11 -10 -9 -9 -8 -7 -6 -6 -6 --------- Run | Yrd Mat Mat Min Mat Fac Fac Low Low Distress Signals 4 | . . 1 . 3 . . . . Communications Jammed . | . . . . . . . . . Distress Signals . | . . . . . . . . . Times Spotted 128 | . 7 24 24 28 10 11 1 23 Peak Tracking Total 20 | . 5 7 14 11 3 7 1 20 Tactical Retreats 12 | . 1 6 . 2 . 1 . 2 Traps | -11 -10 -9 -9 -8 -7 -6 -6 -6 ------- Run | Yrd Mat Mat Min Mat Fac Fac Low Low Traps Triggered 3 | . . . . 2 1 . . . Indirectly . | . . . . . . . . . Trap Hack Attempts . | . . . . . . . . . Triggered . | . . . . . . . . . Disarmed . | . . . . . . . . . Reprogrammed . | . . . . . . . . . Reused . | . . . . . . . . . Traps Extracted . | . . . . . . . . . Installed . | . . . . . . . . . Triggered . | . . . . . . . . . Machines | -11 -10 -9 -9 -8 -7 -6 -6 -6 ---------- Run | Yrd Mat Mat Min Mat Fac Fac Low Low Machines Disabled 2 | . . 1 . . 1 . . . Max in Single Turn 1 | . . 1 . . 1 . . . Garrison Access 1 | . . . . 1 . . . . Machines Repaired . | . . . . . . . . . Machines Dismantled . | . . . . . . . . . Machines Sabotaged . | . . . . . . . . . Overloaded Fab Kills . | . . . . . . . . . Hacking | -11 -10 -9 -9 -8 -7 -6 -6 -6 --------- Run | Yrd Mat Mat Min Mat Fac Fac Low Low Machines Accessed 16 | . 3 6 . 2 2 3 . . Terminals 10 | . 2 5 . 1 1 1 . . Fabricators 1 | . . . . . . 1 . . Repair Stations 1 | . 1 . . . . . . . Recycling Units 2 | . . 1 . . 1 . . . Scanalyzers 1 | . . . . . . 1 . . Garrison Access 1 | . . . . 1 . . . . Total Hacks 36 | . 7 11 . 3 4 11 . . Successful 19 | . 5 4 . 1 3 6 . . Failed 16 | . 2 7 . 2 1 4 . . Catastrophic 4 | . 1 2 . . 1 . . . Database Lockouts 1 | . . . . . . 1 . . Manual 21 | . 7 8 . 2 2 2 . . Terminals 18 | . 4 8 . 2 2 2 . . Fabricators 3 | . . . . . . 3 . . Repair Stations 3 | . 3 . . . . . . . Recycling Units 5 | . . 3 . . 2 . . . Scanalyzers 6 | . . . . . . 6 . . Garrison Access 1 | . . . . 1 . . . . Terminal Hacks 3 | . 1 1 . . 1 . . . Record 1 | . . . . . 1 . . . Terminal Index 2 | . 1 1 . . . . . . Fabricator Hacks 1 | . . . . . . 1 . . Build 1 | . . . . . . 1 . . Repair Station Hacks 3 | . 3 . . . . . . . Scan Component 1 | . 1 . . . . . . . Repair 1 | . 1 . . . . . . . Refit 1 | . 1 . . . . . . . Recycling Unit Hacks 3 | . . 1 . . 2 . . . Report Inventory 2 | . . 1 . . 1 . . . Retrieve Matter 1 | . . . . . 1 . . . Scanalyzer 5 | . . . . . . 5 . . Insert Component 1 | . . . . . . 1 . . Analyze 1 | . . . . . . 1 . . Retrieve Study 3 | . . . . . . 3 . . Garrison Access Hacks 1 | . . . . 1 . . . . Seal Access 1 | . . . . 1 . . . . Unauthorized Hacks 3 | . 1 2 . . . . . . Terminals 3 | . 1 2 . . . . . . Assimilate 3 | . 1 2 . . . . . . Fabricators . | . . . . . . . . . Repair Stations . | . . . . . . . . . Recycling Units . | . . . . . . . . . Scanalyzers . | . . . . . . . . . Garrison Access . | . . . . . . . . . Data Cores Recovered . | . . . . . . . . . Used . | . . . . . . . . . Hacking Detections 11 | . 1 6 . 1 1 2 . . Full Trace Events 3 | . . 1 . . . 2 . . Feedback Events 1 | . . . . . . 1 . . Corruption 1 | . . . . . . 1 . . Feedback Blocked . | . . . . . . . . . Robot Schematics Acquired . | . . . . . . . . . Robots Built . | . . . . . . . . . Authchips . | . . . . . . . . . Time . | . . . . . . . . . Total Robot Build Rating . | . . . . . . . . . Part Schematics Acquired . | . . . . . . . . . Parts Built 2 | . . . . . . 2 . . Authchips . | . . . . . . . . . Time 106 | . . . . . . 106 . . Total Part Build Rating 12 | . . . . . . 12 . . Part Studies Acquired 3 | . . . . . . 3 . . Parts Repaired 1 | . 1 . . . . . . . Time 26 | . 26 . . . . . . . Parts Recycled . | . . . . . . . . . Recycled Matter . | . . . . . . . . . Retrieved Matter . | . . . . . . . . . Retrieved Components . | . . . . . . . . . Parts Scanalyzed 1 | . . . . . . 1 . . Part Schematics Acquired . | . . . . . . . . . Parts Damaged . | . . . . . . . . . Bothacking | -11 -10 -9 -9 -8 -7 -6 -6 -6 ------------ Run | Yrd Mat Mat Min Mat Fac Fac Low Low Used RIF Installer . | . . . . . . . . . Robots Hacked 9 | . 5 1 . 3 . . . . Non-combat 8 | . 5 1 . 2 . . . . Combat 1 | . . . . 1 . . . . Robot Hacks Applied 19 | . 13 2 . 4 . . . . parse_system 3 | . 1 . . 2 . . . . no_distress 12 | . 8 2 . 2 . . . . find_recycling 4 | . 4 . . . . . . . Relay Couplers Released . | . . . . . . . . . Fabnet Peak Effective % . | . . . . . . . . . Robots Rewired . | . . . . . . . . . Allies Hacked . | . . . . . . . . . Hacks Repelled . | . . . . . . . . . Allies | -11 -10 -9 -9 -8 -7 -6 -6 -6 -------- Run | Yrd Mat Mat Min Mat Fac Fac Low Low Total Allies 1 | . . . . . . . . 1 Largest Group 1 | . . . . . . . . 1 Highest-Rated Group 146 | . . . . . . . . 146 Highest-Rated Ally 146 | . . . . . . . . 146 Total Orders 8 | . . . . . . . 8 . ROAM 2 | . . . . . . . 2 . FOLLOW 1 | . . . . . . . 1 . EXPLORE 4 | . . . . . . . 4 . RETURN 1 | . . . . . . . 1 . Ally Attacks . | . . . . . . . . . Total Damage . | . . . . . . . . . Kills . | . . . . . . . . . Allies Corrupted . | . . . . . . . . . Allies Melted . | . . . . . . . . . Intel | -11 -10 -9 -9 -8 -7 -6 -6 -6 ------- Run | Yrd Mat Mat Min Mat Fac Fac Low Low Active Infowar (turns) 3019 | . 297 892 365 310 596 191 303 65 Optics 1426 | . . . . 271 596 191 303 65 Sensors 42 | . . . . . . . 27 15 IFF 29 | . . . . . . 29 . . Terrain 1024 | . . . 217 259 548 . . . Structural 1109 | . 69 892 148 . . . . . Seismic 1321 | . 297 892 132 . . . . . ECM 2 | . . . . . . . . 2 Robot Analysis Total . | . . . . . . . . . Derelict Logs Recovered 4 | . . . 1 . . . 2 1 Drone Launches 3 | . . . . . . . 3 . Drone Recoveries 1 | . . . . . . . 1 . Exploration | -11 -10 -9 -9 -8 -7 -6 -6 -6 ------------- Run | Yrd Mat Mat Min Mat Fac Fac Low Low Turns Passed 3575 | 71 534 892 457 466 596 191 303 65 Spaces Moved 2497 | 48 306 366 418 341 425 274 212 107 Core 57 | 10 . . 19 . . . . 28 Treads . | . . . . . . . . . Legs 974 | 38 306 281 . 81 268 . . . Wheels 122 | . . . 122 . . . . . Hover 1287 | . . 85 277 260 157 274 212 22 Flight 57 | . . . . . . . . 57 Fastest Speed 35 | 50 120 56 50 58 53 53 58 35 Average Speed 84 | 126 120 105 67 78 98 54 64 47 Slowest Speed 190 | 190 120 130 150 190 190 66 66 80 Overloaded Moves . | . . . . . . . . . Propulsion Burnouts . | . . . . . . . . . Robots Hopped 1 | . . . . . . . . 1 Potential Cave-ins 21 | . . 6 15 . . . . . Cave-ins Triggered 2 | . . . 2 . . . . . Exploration Rate (%) 38 | 4 49 49 86 35 15 11 78 20 Regions Visited 8 Branch Regions 3 Pre-discovered Areas 1 | . . . 1 . . . . . Known Exits Taken . | . . . . . . . . . Unknown Exits Taken 8 | 1 1 1 1 1 1 1 1 . Scrap Searched 6 | . . . 2 . . . 2 2 Spaces Dug 32 | . . 12 18 2 . . . . Terrain Destroyed 80 | . 9 12 57 2 . . . . Melee 26 | . . 12 14 . . . . . Projectile 7 | . . . 5 2 . . . . AOE 47 | . 9 . 38 . . . . . Terrain Rammed . | . . . . . . . . . Walls Destroyed . | . . . . . . . . . Machines Disabled . | . . . . . . . . . Actions | -11 -10 -9 -9 -8 -7 -6 -6 -6 --------- Run | Yrd Mat Mat Min Mat Fac Fac Low Low Total 3630 | 55 432 790 524 480 549 305 378 117 Wait 746 | . 80 339 43 69 47 11 157 . Move 2486 | 47 305 365 416 340 424 273 211 105 Hop 1 | . . . . . . . . 1 Pick Up 35 | 2 2 10 3 6 9 2 1 . Fast Attach 56 | 6 4 5 5 9 13 4 4 6 Attach 27 | . . 3 7 5 6 4 1 1 Detach 16 | . 2 2 1 4 2 1 2 2 Swap 24 | . 2 9 6 3 3 1 . . Drop 42 | . 1 11 3 7 16 1 2 1 Fire 139 | . 22 25 24 30 29 8 . 1 Melee 54 | . 14 21 14 5 . . . . Ram 2 | . . . 1 1 . . . . Kick 1 | . . . . 1 . . . . Crush . | . . . . . . . . . Escape Stasis 1 | . . . 1 . . . . . Rewire . | . . . . . . . . . Trap . | . . . . . . . . . Miscellaneous . | . . . . . . . . . Route ------- -11/Scrapyard -10/Materials (discovered 2 exits: *Mat / [*Sub]) -9/Materials -9/Mines -8/Materials -7/Factory -6/Factory -6/Lower Caves -6/Lower Caves History --------- Turn | Location | Event 23 | -11/Scrapyard | Discovered new exit (range 15) 72 | -11/Scrapyard | Entered Materials 149 | -10/Materials | Discovered new exit (range 5) 304 | -10/Materials | Build established: Mutant 461 | -10/Materials | Repaired Aluminum Leg 546 | -10/Materials | Discovered new exit (range 16) 606 | -10/Materials | Entered another Materials area 606 | -9/Materials | Evolved 2 slots: Utility x2 1480 | -9/Materials | Discovered new exit (range 16) 1498 | -9/Materials | Entered Mines 1513 | -9/Mines | Received a Rocket Launcher from a helpful Derelict 1527 | -9/Mines | Joined a pair of Derelicts in attacking an 0b10 outpost 1612 | -9/Mines | Assembled infested the area 1630 | -9/Mines | Crushed by falling debris 1631 | -9/Mines | System corruption reached 10% 1646 | -9/Mines | Crushed by falling debris 1665 | -9/Mines | Destroyed 15 combat bots 1677 | -9/Mines | Lost 11 parts (1p2n4u4w) 1705 | -9/Mines | Core integrity fell below 50% 1939 | -9/Mines | Build established: Scavenger-Mutant 1950 | -9/Mines | Discovered new exit (range 6) 1955 | -9/Mines | Entered Materials 1955 | -8/Materials | Evolved 2 slots: Power x1, Propulsion x1 2399 | -8/Materials | Discovered new exit (range 20) 2421 | -8/Materials | Entered Factory 2421 | -7/Factory | Evolved 2 slots: Propulsion x1, Utility x1 2796 | -7/Factory | Lost 5 parts (1p2n1u1w) 2979 | -7/Factory | Discovered new exit (range 19) 3017 | -7/Factory | Entered another Factory area 3017 | -6/Factory | Evolved 2 slots: Utility x1, Weapon x1 3053 | -6/Factory | Central database locked down 3177 | -6/Factory | Build established: Mutant 3199 | -6/Factory | Fabricated Adv. System Restoration Module? 3205 | -6/Factory | Discovered new exit (range 6) 3208 | -6/Factory | Entered Lower Caves 3236 | -6/Lower Caves | Lost 9 parts (3n4u2w) 3397 | -6/Lower Caves | Learned Factory security intel 3473 | -6/Lower Caves | Learned location of 1 exit from Factory 3507 | -6/Lower Caves | Attracted the attention of an 0b10 checkpoint 3507 | -6/Lower Caves | Discovered new exit (range 7) 3511 | -6/Lower Caves | Entered another Lower Caves area 3519 | -6/Lower Caves | Attracted the attention of an 0b10 outpost 3524 | -6/Lower Caves | Learned Factory terminal intel 3541 | -6/Lower Caves | Core integrity fell below 50% 3550 | -6/Lower Caves | Core integrity fell below 20% 3576 | -6/Lower Caves | Destroyed by S-27 Virus with Autogun Last Messages --------------- 03541_ Found Gauss Cannon. 03541_ Found Imp. Reaction Control System. 03541_ Found Power Amplifier. 03541_ Found 68 Matter. 03542_ Acquired ECM Suite. 03543_ Mak. Flight Unit destroyed. 03544_ ECM Suite destroyed. 03545_ M-28 Smith repairs L-41 Fighter. 03545_ S-27 Virus destroyed. A strange signal echoes through the caves. 03546_ Acquired VTOL Module. 03548_ M-28 Smith repairs S-27 Virus. 03549_ VTOL Module destroyed. 03564_ Acquired Imp. Deuterium Engine. 03567_ Dropped Kinecellerator. 03568_ Acquired Ripper. 03570_ Acquired Kinecellerator. 03572_ AM-C4G(g) destroyed. 03572_ Imp. Cesium-ion Thruster destroyed. 03575_ Ripper destroyed. Map ----- +----------------------------------------------------+ | | | | | | | | | | | | | ?????????????????????????????????????????????????? | | ?????????????????????????????????????????????????? | | ?????????????????????????????????????????????????? | | ?????????????????????????????????????????????????? | | ?????????????????????????????????????????????????? | | ?????????????????????????????????????????????????? | | ?????????????????????????????????????????????????? | | ?????????????????????????????????????????????????? | | ?????????????????????????#####???????????????????? | | ????????????????????????## ##??????????????????? | | ????????????????????????# ##?????????????????? | | ????????????????????????# #?????????????????? | | ????????????????????????#=% g #?????????????????? | | ????????????????????????## #?????????????????? | | ????????????????????????### s #?????????????????? | | ???????????????????????## ##s ###???????????????? | | ??????????????????????## s # #???????###?????? | | ????????????????????### #??????## #????? | | ?????????????# #### s #??????# ????? | | ?????????????# @ ##?????? ###?? | | ?????????????## ##?????? ##? | | ??????????????## ## ##??????# #? | | ???????????????#### ### #???????# #? | | ??????????????????# ?## s #?####### ## | | ?????????????????# ??## #?# | | ?????????????????## ???## ### #### | | ??????????????????## ????## ## #?## | | ???????????????????# ?????# ### ### | | ??????????????????? ?????# | | ?????????????????? ##???# | | ????????????????? #?????# ####### | | ????????????????# ??????## ?????###### # | | ????????????????### ???????## ??????????### | | ??????????????????## ????????# ???????????# | | ???????????????????## ????????# ??????????? | | ????????????????????# ????????# ?????????? | | ????????????????????# ????????## ?????????### | | ????????????????????? ??????????# ???????????? | | ??????????????????????? ???????????###??????????? | | ?????????????????????????????????????????????????? | | ?????????????????????????????????????????????????? | | ?????????????????????????????????????????????????? | | ?????????????????????????????????????????????????? | | ?????????????????????????????????????????????????? | +----------------------------------------------------+ Best States ------------- Heat Dissipation 48 Energy Generation 24 Energy Capacity 325 Matter Stores 300 Matter Capacity 350 Sight Range 22 Robot Scan Range 15 Terrain Scan Range 16 Terrain Scan Density 10 Core Shielding 20 Power Shielding 66 Evasion (%) 63 Targeting Accuracy 8 Kinecelleration 30 Offensive Hacking 20 Item Schematics ----------------- None Robot Schematics ------------------ None Fabricated ------------ Adv. System Restoration Module | x2 | -6/Factory | Preloaded Repaired ---------- Aluminum Leg | 77% | -10/Materials Studied --------- Gravmag System | -6/Factory | Hacked Imp. Hover Unit | -6/Factory | Hacked Cmb. Airjet | -6/Factory | Hacked Alien Tech Used ----------------- None Achievements -------------- Exterminator Safety First Challenges ------------ None Game ------ Seed ModifiedGaussMindspike Manual? 0 Play Time 01:14:44 Cumulative 33.4 hours Start 2026.02.24 @ 12:26:01 End 2026.02.24 @ 13:48:23 Sessions 1 Manual Loads 0 Difficulty Rogue Special Mode None Game No. 27 Rogue 22 Adventurer 5 Explorer 0 Win Type - Total 0 Types 0/0/0/0/0/0/0/0/0/0 Lore% 16 Gallery% 26 Achievement% 22 Wizard Run 0 Options --------- Layout 0 ASCII 0 Keyboard 1 Movement Numpad Keybinds 0 Fullscreen 1 Font 24/Smallcaps Map View 76x50 Zoom Use 0% Tactical HUD 1 Map Filters NONE Filters NONE Steam 1 RUN: 1204d64a-f566-4436-a511-a08b03a39b28